[Event "48th Rilton Cup 2018"]
[Site "Stockholm"]
[Date "2018.12.27"]
[Round "1"]
[White "Urkedal, Frode Olav Olsen"]
[Black "Pranav Anand"]
[Result "1/2-1/2"]
[ECO "D38"]
[WhiteElo "2537"]
[BlackElo "2274"]
[Annotator "ChessBase"]
[PlyCount "116"]
[EventDate "2018.12.27"]
[EventType "swiss"]
[EventCountry "SWE"]
[SourceTitle "playchess.com"]
[Source "ChessBase"]
[SourceQuality "1"]
[TimeControl "40/5400+30:1800+30"]

1. d4 {[%emt 0:00:00]} Nf6 {[%emt 0:00:00]} 2. c4 {[%emt 0:00:00]} e6 {[%emt 0:00:00]} 3. Nf3 {[%emt 0:00:00]} d5 {[%emt 0:00:00]} 4. Nc3 {[%emt 0:00:00]} Bb4 {[%emt 0:00:00]} 5. e3 {[%emt 0:00:45]} O-O {[%emt 0:00:56]} 6. Bd3 {[%emt 0:00:11]} dxc4 {[%emt 0:03:23]} 7. Bxc4 {[%emt 0:00:06]} b6 {[%emt 0:02:16]} 8. O-O {[%emt 0:00:29]} Bb7 {[%emt 0:00:14]} 9. Qe2 {[%emt 0:06:09]} Nbd7 {[%emt 0:01:35]} 10. Bd3 {[%emt 0:09:44]} c5 {[%emt 0:04:01]} 11. a3 {[%emt 0:00:11]} cxd4 {[%emt 0:09:00]} 12. axb4 {[%emt 0:01:18]} dxc3 {[%emt 0:00:34]} 13. bxc3 {[%emt 0:06:59]} Bxf3 {[%emt 0:10:31]} 14. gxf3 {[%emt 0:00:05]} Ne5 {[%emt 0:01:56]} 15. Ba6 {[%emt 0:00:36]} Qc7 {[%emt 0:14:51]} 16. f4 {[%emt 0:19:20]} Nc6 {[%emt 0:01:59]} 17. e4 {[%emt 0:12:32]} Ne7 {[%emt 0:05:27]} 18. c4 {[%emt 0:03:39]} Rad8 {[%emt 0:09:33]} 19. Bb5 {[%emt 0:07:28]} Qb7 {[%emt 0:09:26]} 20. f3 {[%emt 0:07:14]} Nh5 {[%emt 0:03:25]} 21. Qg2 {[%emt 0:03:54]} Ng6 {[%emt 0:03:42]} 22. Qg5 {[%emt 0:01:28]} Nf6 {[%emt 0:00:10]} 23. f5 {[%emt 0:03:11]} h6 {[%emt 0:07:04]} 24. Qg2 {[%emt 0:00:16]} exf5 {[%emt 0:00:15]} 25. exf5 {[%emt 0:00:18]} Ne7 {[%emt 0:00:51]} 26. Bb2 {[%emt 0:07:55]} Kh7 {[%emt 0:06:49]} 27. Kh1 {[%emt 0:00:08]} Rg8 {[%emt 0:01:01]} 28. Rae1 {[%emt 0:02:34]} Nc8 {[%emt 0:02:04]} 29. Ba4 {[%emt 0:03:59]} Qc7 {[%emt 0:00:46]} 30. Bb3 {[%emt 0:00:22]} Nd6 {[%emt 0:01:02]} 31. Be5 {[%emt 0:02:42]} Qc6 {[%emt 0:01:00]} 32. c5 {[%emt 0:00:58]} bxc5 {[%emt 0:01:03]} 33. bxc5 {[%emt 0:00:29]} Qxc5 {[%emt 0:00:50]} 34. Bxd6 {[%emt 0:00:06]} Rxd6 {[%emt 0:00:45]} 35. Bxf7 {[%emt 0:00:06]} Rf8 {[%emt 0:00:29]} 36. Qg6+ {[%emt 0:01:37]} Kh8 {[%emt 0:00:01]} 37. Rg1 {[%emt 0:00:15]} Ne8 {[%emt 0:00:36]} 38. Re6 {[%emt 0:01:14]} Rxe6 {[%emt 0:00:10]} 39. fxe6 {[%emt 0:00:03]} Qe3 {[%emt 0:01:13]} 40. Rg3 {[%emt 0:00:46]} Qc1+ {[%emt 0:00:31]} 41. Rg1 {[%emt 0:30:39]} Qc3 {[%emt 0:09:22]} 42. Rg3 {[%emt 0:00:00]} Qe1+ {[%emt 0:07:52]} 43. Kg2 {[%emt 0:00:00]} Qe2+ {[%emt 0:01:18]} 44. Kh3 {[%emt 0:00:00]} Qf1+ {[%emt 0:00:06]} 45. Kh4 {[%emt 0:00:00]} Qc4+ {[%emt 0:00:05]} 46. Qg4 {[%emt 0:00:00]} g5+ {[%emt 0:06:19]} 47. Kh3 {[%emt 0:00:00]} Qxg4+ {[%emt 0:01:36]} 48. fxg4 {[%emt 0:00:00]} Kg7 {[%emt 0:00:41]} 49. Rd3 {[%emt 0:00:00]} Nf6 {[%emt 0:04:45]} 50. Ra3 {[%emt 0:00:00]} Ra8 {[%emt 0:00:28]} 51. Ra6 {[%emt 0:00:00]} Nd5 {[%emt 0:01:04]} 52. Kg3 {[%emt 0:00:00]} Nf4 {[%emt 0:00:33]} 53. Kf3 {[%emt 0:00:00]} Kf6 {[%emt 0:00:29]} 54. Ke4 {[%emt 0:00:00]} Rb8 {[%emt 0:00:32]} 55. Rxa7 {[%emt 0:00:00]} Rb4+ {[%emt 0:00:14]} 56. Kf3 {[%emt 0:00:00]} Rb3+ {[%emt 0:01:01]} 57. Kf2 {[%emt 0:00:00]} Nxe6 {[%emt 0:00:31]} 58. Bxe6 {[%emt 0:00:00]} Ke5 1/2-1/2

[Event "48th Rilton Cup 2018"]
[Site "Stockholm"]
[Date "2018.12.27"]
[Round "1"]
[White "Ivanov, Sergey"]
[Black "Babikov, Ivan"]
[Result "1/2-1/2"]
[ECO "D51"]
[WhiteElo "2524"]
[BlackElo "2268"]
[Annotator "ChessBase"]
[PlyCount "110"]
[EventDate "2018.12.27"]
[EventType "swiss"]
[EventCountry "SWE"]
[SourceTitle "playchess.com"]
[Source "ChessBase"]
[SourceQuality "1"]
[TimeControl "40/5400+30:1800+30"]

1. d4 {[%emt 0:00:00]} Nf6 {[%emt 0:00:00]} 2. c4 {[%emt 0:00:00]} e6 {[%emt 0:00:05]} 3. Nc3 {[%emt 0:00:07]} d5 {[%emt 0:00:07]} 4. Bg5 {[%emt 0:01:01]} c6 {[%emt 0:00:39]} 5. e3 {[%emt 0:00:23]} Nbd7 {[%emt 0:00:20]} 6. cxd5 {[%emt 0:01:32]} exd5 {[%emt 0:00:09]} 7. Bd3 {[%emt 0:00:23]} Be7 {[%emt 0:00:38]} 8. Qc2 {[%emt 0:04:00]} O-O {[%emt 0:02:20]} 9. Nge2 {[%emt 0:00:27]} Re8 {[%emt 0:01:06]} 10. O-O {[%emt 0:02:08]} Nf8 {[%emt 0:01:45]} 11. Rad1 {[%emt 0:01:38]} Nh5 {[%emt 0:13:24]} 12. Bxe7 {[%emt 0:04:33]} Qxe7 {[%emt 0:00:06]} 13. a3 {[%emt 0:01:35]} g6 {[%emt 0:07:02]} 14. b4 {[%emt 0:03:17]} a5 {[%emt 0:01:10]} 15. Qb3 {[%emt 0:04:44]} axb4 {[%emt 0:04:08]} 16. axb4 {[%emt 0:00:06]} Ng7 {[%emt 0:01:34]} 17. Na4 {[%emt 0:06:28]} Bf5 {[%emt 0:05:40]} 18. b5 {[%emt 0:01:15]} Ra5 {[%emt 0:03:03]} 19. bxc6 {[%emt 0:06:03]} bxc6 {[%emt 0:01:18]} 20. Qc2 {[%emt 0:11:46]} Qa7 {[%emt 0:12:12]} 21. Nec3 {[%emt 0:10:06]} Nd7 {[%emt 0:04:23]} 22. Nb2 {[%emt 0:01:33]} Ra3 {[%emt 0:05:54]} 23. Nca4 {[%emt 0:13:23]} Qa6 {[%emt 0:11:16]} 24. Bxa6 {[%emt 0:08:37]} Bxc2 {[%emt 0:00:06]} 25. Ra1 {[%emt 0:00:08]} Rxa1 {[%emt 0:01:33]} 26. Rxa1 {[%emt 0:00:06]} Ne6 {[%emt 0:13:25]} 27. Rc1 {[%emt 0:11:25]} Ra8 {[%emt 0:01:09]} 28. Rxc2 {[%emt 0:00:42]} Rxa6 {[%emt 0:00:06]} 29. g4 {[%emt 0:00:42]} Kf8 {[%emt 0:01:43]} 30. Kg2 {[%emt 0:00:48]} Ke7 {[%emt 0:00:17]} 31. h4 {[%emt 0:01:48]} h5 {[%emt 0:02:49]} 32. g5 {[%emt 0:00:33]} Kd6 {[%emt 0:01:09]} 33. f3 {[%emt 0:01:06]} Ng7 {[%emt 0:03:03]} 34. e4 {[%emt 0:01:32]} Ne6 {[%emt 0:00:06]} 35. Rd2 {[%emt 0:00:38]} Nb6 {[%emt 0:00:36]} 36. Nc3 {[%emt 0:01:24]} Ra3 {[%emt 0:00:50]} 37. exd5 {[%emt 0:00:53]} Nf4+ {[%emt 0:01:22]} 38. Kg3 {[%emt 0:00:05]} Rxc3 {[%emt 0:00:11]} 39. Kxf4 {[%emt 0:00:03]} Nxd5+ {[%emt 0:00:42]} 40. Kg3 {[%emt 0:00:02]} Ne3 {[%emt 0:00:13]} 41. Kf4 {[%emt 0:05:16]} Nf5 {[%emt 0:04:58]} 42. Nd3 {[%emt 0:12:13]} Nxh4 {[%emt 0:05:17]} 43. Ke4 {[%emt 0:00:38]} Nf5 {[%emt 0:00:54]} 44. Ne5 {[%emt 0:00:23]} Ke7 {[%emt 0:08:24]} 45. Ra2 {[%emt 0:00:51]} Nd6+ {[%emt 0:00:45]} 46. Kf4 {[%emt 0:00:07]} Ke6 {[%emt 0:01:03]} 47. Ra5 {[%emt 0:02:37]} Nf5 {[%emt 0:09:37]} 48. Nxc6 {[%emt 0:02:21]} h4 {[%emt 0:01:07]} 49. d5+ {[%emt 0:04:04]} Kd6 {[%emt 0:00:21]} 50. Ne5 {[%emt 0:01:27]} Rc7 {[%emt 0:00:33]} 51. Ke4 {[%emt 0:01:32]} Ng3+ {[%emt 0:01:40]} 52. Kd4 {[%emt 0:01:02]} Ne2+ {[%emt 0:00:08]} 53. Ke4 {[%emt 0:00:17]} Nc3+ {[%emt 0:03:06]} 54. Kd4 {[%emt 0:00:13]} Ne2+ {[%emt 0:00:13]} 55. Ke4 {[%emt 0:00:06]} Nc3+ {[%emt 0:00:54]} 1/2-1/2

[Event "48th Rilton Cup 2018"]
[Site "Stockholm"]
[Date "2018.12.27"]
[Round "1"]
[White "Sandu, Mihaela"]
[Black "Lagarde, Maxime"]
[Result "0-1"]
[ECO "B00"]
[WhiteElo "2312"]
[BlackElo "2616"]
[Annotator "RC"]
[PlyCount "86"]
[EventDate "2018.12.27"]
[EventType "swiss"]
[EventCountry "SWE"]
[SourceTitle "playchess.com"]
[Source "ChessBase"]
[SourceQuality "1"]
[TimeControl "40/5400+30:1800+30"]

1. e4 {[%emt 0:00:00]} Nc6 {[%emt 0:00:00]} 2. Nf3 {[%emt 0:00:00]} d6 {[%emt 0:00:00]} 3. d4 {[%emt 0:01:03]} Nf6 {[%emt 0:00:00]} 4. Nc3 {[%emt 0:00:50]} g6 {[%emt 0:00:00]} 5. Be2 {[%emt 0:00:34]} Bg7 {[%emt 0:00:00]} 6. O-O {[%emt 0:02:06]} O-O {[%emt 0:00:09]} 7. d5 {[%emt 0:00:26]} Nb8 {[%emt 0:00:11]} 8. Re1 {[%emt 0:01:26]} e5 {[%emt 0:01:06]} 9. dxe6 {[%emt 0:00:18]} Bxe6 {[%emt 0:00:05]} 10. h3 {[%emt 0:06:19]} Nc6 {[%emt 0:00:23]} 11. Bf1 {[%emt 0:01:55]} h6 {[%emt 0:05:37]} 12. Nd5 {[%emt 0:04:21]} Nd7 {[%emt 0:02:05]} 13. c3 {[%emt 0:13:52]} Nc5 {[%emt 0:10:37]} 14. b4 {[%emt 0:08:24]} Nd7 {[%emt 0:01:05]} 15. Nd4 {[%emt 0:08:41]} Nxd4 {[%emt 0:04:49]} 16. cxd4 {[%emt 0:00:09]} Bxd5 {[%emt 0:03:47]} 17. exd5 {[%emt 0:02:53]} Nb6 {[%emt 0:00:30]} 18. Qf3 {[%emt 0:02:22]} a5 {[%emt 0:20:26]} 19. b5 {[%emt 0:04:23]} a4 {[%emt 0:11:43]} 20. Bd2 {[%emt 0:13:13]} Bxd4 {[%emt 0:22:26]} 21. Bxh6 {[%emt 0:02:16]} Bxa1 {[%emt 0:00:36]} 22. Bxf8 {[%emt 0:02:06]} Qf6 {[%emt 0:01:14]} 23. Bh6 {[%emt 0:06:34]} Qxf3 {[%emt 0:02:18]} 24. gxf3 {[%emt 0:00:04]} Bg7 {[%emt 0:01:09]} 25. Bd2 {[%emt 0:02:49]} Nxd5 {[%emt 0:00:39]} 26. Rc1 {[%emt 0:00:11]} Bd4 {[%emt 0:04:29]} 27. Bd3 {[%emt 0:00:49]} Bc5 {[%emt 0:00:33]} 28. Rc4 {[%emt 0:08:22]} Nb6 {[%emt 0:05:59]} 29. Rh4 {[%emt 0:01:25]} d5 {[%emt 0:00:50]} 30. Bc3 {[%emt 0:01:17]} Kf8 {[%emt 0:01:05]} 31. Bf6 {[%emt 0:00:13]} Ke8 {[%emt 0:00:03]} 32. f4 {[%emt 0:00:28]} Be7 {[%emt 0:00:16]} 33. Bxe7 {[%emt 0:06:04]} Kxe7 {[%emt 0:00:04]} 34. f5 {[%emt 0:00:02]} g5 {[%emt 0:01:07]} 35. Rg4 {[%emt 0:00:02]} Kf6 {[%emt 0:00:20]} 36. f4 {[%emt 0:00:12]} gxf4 {[%emt 0:00:33]} 37. Rxf4 {[%emt 0:00:15]} Nd7 {[%emt 0:00:54]} 38. Bc2 {[%emt 0:00:23]} Nc5 {[%emt 0:00:23]} 39. Rh4 {[%emt 0:00:29]} Ra5 {[%emt 0:00:44]} 40. b6 {[%emt 0:00:16]} c6 {[%emt 0:00:29]} 41. Rg4 {[%emt 0:07:10]} Rb5 {[%emt 0:02:40]} 42. h4 {[%emt 0:03:03]} Rb2 {[%emt 0:01:03]} 43. Rg2 {[%emt 0:00:14]} d4 {[%emt 0:02:21]} 0-1

[Event "48th Rilton Cup 2018"]
[Site "Stockholm"]
[Date "2018.12.27"]
[Round "1"]
[White "Estremera Panos, Sergio"]
[Black "Gajewski, Grzegorz"]
[Result "0-1"]
[ECO "E47"]
[WhiteElo "2310"]
[BlackElo "2598"]
[Annotator "ChessBase"]
[PlyCount "60"]
[EventDate "2018.12.27"]
[EventType "swiss"]
[EventCountry "SWE"]
[SourceTitle "playchess.com"]
[Source "ChessBase"]
[SourceQuality "1"]
[TimeControl "40/5400+30:1800+30"]

1. d4 {[%emt 0:00:00]} Nf6 {[%emt 0:00:00]} 2. c4 {[%emt 0:00:00]} e6 {[%emt 0:00:00]} 3. Nc3 {[%emt 0:00:10]} Bb4 {[%emt 0:00:00]} 4. e3 {[%emt 0:00:35]} O-O {[%emt 0:00:08]} 5. Bd3 {[%emt 0:00:22]} b6 {[%emt 0:00:41]} 6. Nge2 {[%emt 0:01:49]} d5 {[%emt 0:03:00]} 7. a3 {[%emt 0:07:35]} Be7 {[%emt 0:02:42]} 8. O-O {[%emt 0:03:50]} dxc4 {[%emt 0:03:35]} 9. Bxc4 {[%emt 0:00:09]} c5 {[%emt 0:01:58]} 10. dxc5 {[%emt 0:46:56]} Qc7 {[%emt 0:02:37]} 11. b4 {[%emt 0:03:43]} bxc5 {[%emt 0:01:44]} 12. b5 {[%emt 0:06:51]} Bb7 {[%emt 0:00:47]} 13. Ng3 {[%emt 0:04:55]} Nbd7 {[%emt 0:01:46]} 14. Bb2 {[%emt 0:01:58]} Ne5 {[%emt 0:07:07]} 15. Qe2 {[%emt 0:01:15]} h5 {[%emt 0:02:54]} 16. f4 {[%emt 0:02:58]} Nxc4 {[%emt 0:00:26]} 17. Qxc4 {[%emt 0:00:01]} Rad8 {[%emt 0:01:34]} 18. Rf2 {[%emt 0:04:42]} h4 {[%emt 0:07:49]} 19. Nge4 {[%emt 0:00:17]} Qd7 {[%emt 0:00:39]} 20. Nxf6+ {[%emt 0:07:37]} Bxf6 {[%emt 0:01:35]} 21. Ne4 {[%emt 0:00:02]} Bxb2 {[%emt 0:00:51]} 22. Rxb2 {[%emt 0:00:02]} h3 {[%emt 0:00:52]} 23. Rd2 {[%emt 0:02:22]} Qxd2 {[%emt 0:05:35]} 24. Nxd2 {[%emt 0:00:04]} Rxd2 {[%emt 0:00:05]} 25. gxh3 {[%emt 0:02:05]} Rg2+ {[%emt 0:00:06]} 26. Kf1 {[%emt 0:00:03]} Rd8 {[%emt 0:00:32]} 27. e4 {[%emt 0:02:00]} Rxh2 {[%emt 0:00:52]} 28. Kg1 {[%emt 0:00:42]} Rdd2 {[%emt 0:00:28]} 29. Re1 {[%emt 0:00:08]} Rdg2+ {[%emt 0:00:13]} 30. Kf1 {[%emt 0:00:12]} Rc2 {[%emt 0:00:06]} 0-1

[Event "48th Rilton Cup 2018"]
[Site "Stockholm"]
[Date "2018.12.27"]
[Round "1"]
[White "Chizhikov, Vladislav"]
[Black "Karthikeyan, Murali"]
[Result "0-1"]
[ECO "A48"]
[WhiteElo "2304"]
[BlackElo "2591"]
[Annotator "ChessBase"]
[PlyCount "90"]
[EventDate "2018.12.27"]
[EventType "swiss"]
[EventCountry "SWE"]
[SourceTitle "playchess.com"]
[Source "ChessBase"]
[SourceQuality "1"]
[TimeControl "40/5400+30:1800+30"]

1. d4 {[%emt 0:00:00]} Nf6 {[%emt 0:00:34]} 2. Nf3 {[%emt 0:00:01]} g6 {[%emt 0:00:40]} 3. c4 {[%emt 0:00:29]} Bg7 {[%emt 0:00:58]} 4. g3 {[%emt 0:00:16]} c5 {[%emt 0:01:50]} 5. Bg2 {[%emt 0:01:16]} cxd4 {[%emt 0:01:38]} 6. O-O {[%emt 0:02:15]} d3 {[%emt 0:06:01]} 7. Qxd3 {[%emt 0:00:49]} O-O {[%emt 0:00:22]} 8. Nc3 {[%emt 0:00:05]} Nc6 {[%emt 0:03:59]} 9. Bg5 {[%emt 0:08:12]} d6 {[%emt 0:00:50]} 10. Rac1 {[%emt 0:00:59]} Be6 {[%emt 0:16:32]} 11. Rfd1 {[%emt 0:09:13]} Ng4 {[%emt 0:06:56]} 12. Nd5 {[%emt 0:03:57]} h6 {[%emt 0:04:58]} 13. Bd2 {[%emt 0:03:23]} Rc8 {[%emt 0:11:29]} 14. Qb3 {[%emt 0:04:11]} b6 {[%emt 0:08:21]} 15. Bc3 {[%emt 0:08:40]} Na5 {[%emt 0:02:44]} 16. Bxa5 {[%emt 0:21:56]} bxa5 {[%emt 0:01:20]} 17. Qb7 {[%emt 0:01:54]} Re8 {[%emt 0:12:37]} 18. c5 {[%emt 0:07:07]} Rxc5 {[%emt 0:03:34]} 19. Rxc5 {[%emt 0:00:57]} dxc5 {[%emt 0:00:01]} 20. h3 {[%emt 0:01:14]} Ne5 {[%emt 0:00:20]} 21. Nf6+ {[%emt 0:06:04]} Bxf6 {[%emt 0:00:07]} 22. Rxd8 {[%emt 0:00:08]} Nxf3+ {[%emt 0:00:09]} 23. Bxf3 {[%emt 0:00:16]} Rxd8 {[%emt 0:00:03]} 24. Qxa7 {[%emt 0:00:42]} c4 {[%emt 0:01:45]} 25. Qxa5 {[%emt 0:01:32]} Rd1+ {[%emt 0:01:56]} 26. Kg2 {[%emt 0:00:59]} Bxb2 {[%emt 0:00:05]} 27. e3 {[%emt 0:00:33]} Rd6 {[%emt 0:01:38]} 28. Be4 {[%emt 0:03:31]} c3 {[%emt 0:01:34]} 29. Qa4 {[%emt 0:01:33]} Kg7 {[%emt 0:01:45]} 30. Bc2 {[%emt 0:00:39]} Rd2 {[%emt 0:07:26]} 31. Bb3 {[%emt 0:01:34]} h5 {[%emt 0:01:34]} 32. Qb4 {[%emt 0:02:03]} c2 {[%emt 0:00:35]} 33. Bxc2 {[%emt 0:05:29]} Rxc2 {[%emt 0:00:02]} 34. a4 {[%emt 0:00:21]} Bd5+ {[%emt 0:00:35]} 35. e4 {[%emt 0:01:00]} Bc6 {[%emt 0:00:10]} 36. a5 {[%emt 0:00:52]} e5 {[%emt 0:00:09]} 37. g4 {[%emt 0:01:34]} Bd4 {[%emt 0:00:47]} 38. Kf1 {[%emt 0:02:18]} Bxe4 {[%emt 0:00:24]} 39. gxh5 {[%emt 0:00:25]} Bd3+ {[%emt 0:01:44]} 40. Kg2 {[%emt 0:00:16]} Rxf2+ {[%emt 0:00:28]} 41. Kg3 {[%emt 0:30:08]} Be4 {[%emt 0:30:10]} 42. h6+ {[%emt 0:00:22]} Kxh6 {[%emt 0:00:45]} 43. Qf8+ {[%emt 0:00:04]} Kh7 {[%emt 0:00:14]} 44. h4 {[%emt 0:00:12]} Rf4 {[%emt 0:00:00]} 45. Kh2 {[%emt 0:00:00]} Bf2 {[%emt 0:00:00]} 0-1

[Event "48th Rilton Cup 2018"]
[Site "Stockholm"]
[Date "2018.12.27"]
[Round "1"]
[White "Buchenau, Frank"]
[Black "Gopal G.N."]
[Result "0-1"]
[ECO "B51"]
[WhiteElo "2289"]
[BlackElo "2582"]
[Annotator "ChessBase"]
[PlyCount "128"]
[EventDate "2018.12.27"]
[EventType "swiss"]
[EventCountry "SWE"]
[SourceTitle "playchess.com"]
[Source "ChessBase"]
[SourceQuality "1"]
[TimeControl "40/5400+30:1800+30"]

1. e4 {[%emt 0:00:00]} c5 {[%emt 0:00:00]} 2. Nf3 {[%emt 0:00:00]} d6 {[%emt 0:00:00]} 3. Bb5+ {[%emt 0:00:00]} Nd7 {[%emt 0:00:00]} 4. O-O {[%emt 0:00:02]} a6 {[%emt 0:00:00]} 5. Bd3 {[%emt 0:00:08]} Ngf6 {[%emt 0:00:50]} 6. Re1 {[%emt 0:00:22]} e6 {[%emt 0:00:46]} 7. c3 {[%emt 0:02:49]} b5 {[%emt 0:01:28]} 8. Bc2 {[%emt 0:03:20]} Bb7 {[%emt 0:02:57]} 9. d4 {[%emt 0:03:41]} Be7 {[%emt 0:00:13]} 10. Nbd2 {[%emt 0:02:38]} Qc7 {[%emt 0:00:26]} 11. Nf1 {[%emt 0:08:33]} O-O {[%emt 0:00:53]} 12. Ng3 {[%emt 0:06:15]} Rfe8 {[%emt 0:02:17]} 13. Be3 {[%emt 0:07:10]} Bf8 {[%emt 0:07:51]} 14. h3 {[%emt 0:02:24]} Rac8 {[%emt 0:10:40]} 15. Rc1 {[%emt 0:03:23]} g6 {[%emt 0:12:03]} 16. Qd2 {[%emt 0:04:06]} Bg7 {[%emt 0:06:55]} 17. Bh6 {[%emt 0:03:02]} Bh8 {[%emt 0:03:39]} 18. Nh2 {[%emt 0:09:56]} a5 {[%emt 0:17:16]} 19. f4 {[%emt 0:02:21]} cxd4 {[%emt 0:01:54]} 20. cxd4 {[%emt 0:00:18]} Qb6 {[%emt 0:00:38]} 21. Kh1 {[%emt 0:12:15]} Rc4 {[%emt 0:03:45]} 22. Nf3 {[%emt 0:03:17]} Rec8 {[%emt 0:00:43]} 23. f5 {[%emt 0:07:00]} e5 {[%emt 0:11:49]} 24. Be3 {[%emt 0:06:43]} Qc7 {[%emt 0:02:58]} 25. Bd3 {[%emt 0:01:40]} Rxc1 {[%emt 0:00:11]} 26. Rxc1 {[%emt 0:00:01]} Qxc1+ {[%emt 0:01:11]} 27. Qxc1 {[%emt 0:00:01]} Rxc1+ {[%emt 0:00:01]} 28. Bxc1 {[%emt 0:00:02]} exd4 {[%emt 0:05:14]} 29. Nxd4 {[%emt 0:01:50]} b4 {[%emt 0:02:32]} 30. Nb3 {[%emt 0:05:23]} a4 {[%emt 0:00:16]} 31. Na5 {[%emt 0:00:15]} Nc5 {[%emt 0:00:40]} 32. Nxb7 {[%emt 0:01:20]} Nxd3 {[%emt 0:00:06]} 33. Bd2 {[%emt 0:00:25]} Nd7 {[%emt 0:00:54]} 34. b3 {[%emt 0:01:08]} axb3 {[%emt 0:02:57]} 35. axb3 {[%emt 0:00:03]} N7c5 {[%emt 0:00:02]} 36. Nxc5 {[%emt 0:00:56]} dxc5 {[%emt 0:00:18]} 37. fxg6 {[%emt 0:03:13]} hxg6 {[%emt 0:00:33]} 38. Nf1 {[%emt 0:02:17]} c4 {[%emt 0:03:21]} 39. Bxb4 {[%emt 0:00:21]} cxb3 {[%emt 0:00:03]} 40. Nd2 {[%emt 0:00:46]} b2 {[%emt 0:01:06]} 41. Ba3 {[%emt 0:30:25]} Nf2+ {[%emt 0:00:04]} 42. Kg1 {[%emt 0:00:00]} Nxe4 {[%emt 0:00:14]} 43. Bxb2 {[%emt 0:00:00]} Nxd2 {[%emt 0:00:09]} 44. Bc1 {[%emt 0:00:00]} Bd4+ {[%emt 0:02:01]} 45. Kh1 {[%emt 0:00:00]} Be3 {[%emt 0:01:56]} 46. Bb2 {[%emt 0:00:00]} f5 {[%emt 0:00:22]} 47. Kh2 {[%emt 0:00:00]} Nf1+ {[%emt 0:01:32]} 48. Kh1 {[%emt 0:00:00]} Kf7 {[%emt 0:00:25]} 49. Bc3 {[%emt 0:00:00]} Ng3+ {[%emt 0:02:34]} 50. Kh2 {[%emt 0:00:00]} Bf4 {[%emt 0:00:11]} 51. Be1 {[%emt 0:00:00]} Ne2+ {[%emt 0:00:44]} 52. Kh1 {[%emt 0:00:00]} Bg3 {[%emt 0:00:26]} 53. Bd2 {[%emt 0:00:00]} Ke6 {[%emt 0:00:07]} 54. Bg5 {[%emt 0:00:00]} Kd5 {[%emt 0:00:08]} 55. Bh6 {[%emt 0:00:00]} Ke4 {[%emt 0:00:04]} 56. Bg5 {[%emt 0:00:00]} Kd3 {[%emt 0:01:14]} 57. Bh6 {[%emt 0:00:00]} Bf4 {[%emt 0:01:10]} 58. Bf8 {[%emt 0:00:00]} Ng3+ {[%emt 0:00:12]} 59. Kg1 {[%emt 0:00:00]} Ke2 {[%emt 0:01:12]} 60. Be7 {[%emt 0:00:00]} Be3+ {[%emt 0:00:38]} 61. Kh2 {[%emt 0:00:00]} Nf1+ {[%emt 0:00:05]} 62. Kh1 {[%emt 0:00:00]} Nd2 {[%emt 0:05:18]} 63. Kh2 {[%emt 0:00:00]} Ne4 {[%emt 0:00:42]} 64. Bd8 {[%emt 0:00:43]} Kf1 {[%emt 0:01:48]} 0-1

[Event "48th Rilton Cup 2018"]
[Site "Stockholm"]
[Date "2018.12.27"]
[Round "1"]
[White "Ornstein, Axel"]
[Black "Santos Latasa, Jaime"]
[Result "0-1"]
[ECO "D43"]
[WhiteElo "2289"]
[BlackElo "2584"]
[Annotator "ChessBase"]
[PlyCount "116"]
[EventDate "2018.12.27"]
[EventType "swiss"]
[EventCountry "SWE"]
[SourceTitle "playchess.com"]
[Source "ChessBase"]
[SourceQuality "1"]
[TimeControl "40/5400+30:1800+30"]

1. d4 {[%emt 0:00:00]} Nf6 {[%emt 0:00:00]} 2. Nf3 {[%emt 0:00:00]} d5 {[%emt 0:00:00]} 3. c4 {[%emt 0:05:48]} e6 4. Bg5 h6 {[%emt 0:03:09]} 5. Bxf6 {[%emt 0:00:55]} Qxf6 {[%emt 0:00:13]} 6. Nc3 {[%emt 0:00:22]} c6 {[%emt 0:00:11]} 7. Qb3 {[%emt 0:02:55]} Nd7 {[%emt 0:03:10]} 8. e4 {[%emt 0:00:54]} dxe4 {[%emt 0:00:15]} 9. Nxe4 {[%emt 0:00:01]} Qf4 {[%emt 0:00:27]} 10. Bd3 {[%emt 0:00:07]} Be7 {[%emt 0:00:15]} 11. O-O {[%emt 0:00:08]} O-O {[%emt 0:00:08]} 12. Rad1 {[%emt 0:04:28]} e5 {[%emt 0:04:26]} 13. dxe5 {[%emt 0:07:12]} Nxe5 {[%emt 0:00:21]} 14. Nxe5 {[%emt 0:00:04]} Qxe5 {[%emt 0:00:07]} 15. f4 {[%emt 0:03:38]} Qd4+ {[%emt 0:12:05]} 16. Kh1 {[%emt 0:01:08]} Qb6 {[%emt 0:01:20]} 17. Qc2 {[%emt 0:12:02]} Bf5 {[%emt 0:03:08]} 18. Ng3 {[%emt 0:15:19]} Bxd3 {[%emt 0:00:21]} 19. Rxd3 {[%emt 0:00:03]} Rad8 {[%emt 0:01:48]} 20. Nf5 {[%emt 0:00:34]} Bf6 {[%emt 0:00:17]} 21. Rb3 {[%emt 0:00:05]} Qa5 {[%emt 0:02:06]} 22. Rxb7 {[%emt 0:01:10]} Rd2 {[%emt 0:00:28]} 23. b4 {[%emt 0:00:06]} Qxb4 {[%emt 0:03:38]} 24. Rxb4 Rxc2 {[%emt 0:00:15]} 25. Ra4 {[%emt 0:11:42]} Re8 {[%emt 0:00:40]} 26. Ng3 {[%emt 0:03:33]} Bd4 {[%emt 0:01:29]} 27. h4 {[%emt 0:00:04]} Rb8 {[%emt 0:05:00]} 28. Nf5 {[%emt 0:00:58]} Bc5 {[%emt 0:01:52]} 29. Ra5 {[%emt 0:00:08]} Bb6 {[%emt 0:01:10]} 30. Ra3 {[%emt 0:04:28]} Kh7 {[%emt 0:01:56]} 31. Rg3 {[%emt 0:02:08]} g6 {[%emt 0:00:24]} 32. Nd6 {[%emt 0:00:02]} Bc7 {[%emt 0:00:53]} 33. Rd1 {[%emt 0:06:17]} Rd8 {[%emt 0:00:53]} 34. Rgd3 {[%emt 0:00:18]} Kg8 {[%emt 0:01:12]} 35. Nxf7 {[%emt 0:04:31]} Rxd3 {[%emt 0:00:21]} 36. Rxd3 {[%emt 0:00:04]} Bxf4 {[%emt 0:00:06]} 37. g3 {[%emt 0:00:12]} Kxf7 {[%emt 0:00:17]} 38. gxf4 {[%emt 0:00:10]} Rxc4 {[%emt 0:00:05]} 39. h5 {[%emt 0:01:30]} Rxf4 {[%emt 0:01:37]} 40. hxg6+ {[%emt 0:00:44]} Kxg6 {[%emt 0:00:11]} 41. Rd6+ {[%emt 0:30:43]} Rf6 {[%emt 0:30:08]} 42. Rd7 {[%emt 0:00:03]} a5 {[%emt 0:00:29]} 43. Kg2 {[%emt 0:00:59]} Kg5 {[%emt 0:00:21]} 44. Kg3 {[%emt 0:00:31]} Rf5 {[%emt 0:01:11]} 45. Rg7+ {[%emt 0:00:09]} Kf6 {[%emt 0:00:17]} 46. Rc7 {[%emt 0:00:35]} Rc5 {[%emt 0:00:07]} 47. a4 {[%emt 0:03:03]} h5 {[%emt 0:00:31]} 48. Rh7 {[%emt 0:01:42]} Rc3+ {[%emt 0:03:26]} 49. Kf2 {[%emt 0:01:09]} Kg5 {[%emt 0:00:41]} 50. Rg7+ {[%emt 0:00:22]} Kf4 {[%emt 0:00:54]} 51. Rf7+ {[%emt 0:00:05]} Ke4 {[%emt 0:00:05]} 52. Re7+ {[%emt 0:00:20]} Kd4 {[%emt 0:00:10]} 53. Ke2 {[%emt 0:00:41]} h4 {[%emt 0:01:18]} 54. Rh7 {[%emt 0:03:45]} Rh3 {[%emt 0:01:14]} 55. Ra7 {[%emt 0:00:08]} Re3+ {[%emt 0:01:07]} 56. Kf2 {[%emt 0:00:19]} Re5 {[%emt 0:00:05]} 57. Rh7 {[%emt 0:00:07]} c5 {[%emt 0:00:10]} 58. Rxh4+ {[%emt 0:00:05]} Kc3 {[%emt 0:00:07]} 0-1